bitfinex/quotes_BTCUSD_20250624
["timestamp","ask_amount","ask_price","bid_price","bid_amount"]
[1750800999248,0.95069723,106070.0,106060.0,0.00204596]
[1750800999443,1.00069723,106070.0,106060.0,0.00204596]
[1750801001355,1.00069711,106070.0,106060.0,0.00204596]
[1750801004374,0.95069711,106070.0,106060.0,0.00204596]
[1750801004584,1.00069711,106070.0,106060.0,0.00204596]
[1750801004989,1.00069725,106070.0,106060.0,0.00204596]
[1750801005795,0.95069725,106070.0,106060.0,0.00204596]
[1750801006004,1.00069725,106070.0,106060.0,0.00204596]
[1750801006465,1.00069729,106070.0,106060.0,0.00204596]
[1750801007168,1.00069724,106070.0,106060.0,0.00204596]
[1750801009435,1.00069735,106070.0,106060.0,0.00204596]
[1750801009870,1.00069721,106070.0,106060.0,0.00204596]
[1750801012879,1.00069469,106070.0,106060.0,0.00204596]
[1750801018578,0.95069469,106070.0,106060.0,0.00204596]
[1750801018823,1.00069469,106070.0,106060.0,0.00204596]
[1750801020824,0.95069469,106070.0,106060.0,0.00204596]
[1750801021045,1.00069469,106070.0,106060.0,0.00204596]
[1750801021484,0.97638165,106070.0,106060.0,0.00204596]
[1750801021693,1.00069012,106070.0,106060.0,0.00204596]
[1750801024053,0.95069012,106070.0,106060.0,0.00204596]
[1750801024288,1.00069047,106070.0,106060.0,0.00204596]
[1750801025593,0.95069047,106070.0,106060.0,0.00204596]
[1750801025820,1.00069047,106070.0,106060.0,0.00204596]
[1750801026304,0.99406187,106070.0,106060.0,0.00204596]
[1750801026518,1.00069195,106070.0,106060.0,0.00204596]
[1750801027343,0.80857196,106070.0,106060.0,0.00204596]
[1750801027542,1.00057196,106070.0,106060.0,0.00204596]
[1750801030168,1.00057284,106070.0,106060.0,0.00204596]
[1750801033131,1.00057138,106070.0,106060.0,0.00204596]
[1750801033573,0.60254179,106060.0,106050.0,0.0004]
[1750801033718,1.03481547,106060.0,106050.0,0.0004]
[1750801033921,0.90053898,106060.0,106050.0,0.0004]
[1750801034121,0.60256046,106050.0,106040.0,0.0024]
[1750801034330,0.95685125,106050.0,106040.0,0.0024]
[1750801034773,0.96062925,106050.0,106040.0,0.0024]
[1750801035167,0.99022207,106050.0,106040.0,0.0024]
[1750801035539,0.99968567,106050.0,106040.0,0.0024]
[1750801035926,0.99963539,106050.0,106040.0,0.0024]
[1750801036228,1.00463539,106050.0,106040.0,0.0024]
[1750801037026,1.00863539,106050.0,106040.0,0.0024]
[1750801038330,0.98038202,106050.0,106040.0,0.0024]
[1750801038751,0.95612257,106050.0,106040.0,0.0024]
[1750801038967,1.28803078,106050.0,106040.0,0.0024]
[1750801039170,6.37574293,106050.0,106040.0,0.0024]
[1750801039621,6.34748956,106050.0,106040.0,0.0024]
[1750801039802,6.37568631,106050.0,106040.0,0.0024]
[1750801041797,6.37565942,106050.0,106040.0,0.0024]
[1750801044631,6.37561219,106050.0,106040.0,0.0024]
[1750801045074,1.32561219,106050.0,106040.0,0.0024]
[1750801045285,6.37561218,106050.0,106040.0,0.0024]
[1750801046412,6.33790003,106050.0,106040.0,0.0024]
[1750801046656,5.71437196,106040.0,106030.0,0.0004]
[1750801046879,5.71437196,106040.0,106020.0,0.0024]
[1750801046880,0.19805697,106030.0,106020.0,0.0024]
[1750801047102,1.33500641,106030.0,106020.0,0.0024]
[1750801047330,6.38878641,106030.0,106020.0,0.0024]
[1750801047545,6.38878641,106030.0,106010.0,0.0004]
[1750801047546,0.6026165,106020.0,106010.0,0.0004]
[1750801047773,0.99852509,106020.0,106010.0,0.0004]
[1750801048011,6.04852509,106020.0,106010.0,0.0004]
[1750801048220,6.07825859,106020.0,106010.0,0.0004]
[1750801050389,6.07823315,106020.0,106010.0,0.0004]
[1750801051440,6.12105103,106020.0,106010.0,0.0004]
[1750801051682,6.07823315,106020.0,106010.0,0.0004]
[1750801052967,6.07821838,106020.0,106010.0,0.0004]
[1750801053176,6.07820489,106020.0,106010.0,0.0004]
[1750801055099,6.17746489,106020.0,106010.0,0.0004]
[1750801055979,6.17746913,106020.0,106010.0,0.0004]
[1750801057891,6.19124588,106020.0,106010.0,0.0004]
[1750801058114,6.17746913,106020.0,106010.0,0.0004]
[1750801059401,6.20566588,106020.0,106010.0,0.0004]
[1750801060817,6.2056873,106020.0,106010.0,0.0004]
[1750801062050,6.15502472,106020.0,106010.0,0.0004]
[1750801062273,6.38861679,106020.0,106010.0,0.0004]
[1750801062496,6.29314684,106020.0,106010.0,0.0004]
[1750801062729,6.54314684,106020.0,106010.0,0.0004]
[1750801062947,0.72798713,106010.0,106000.0,0.002]
[1750801063162,1.05108394,106010.0,106000.0,0.002]
[1750801063407,1.08067676,106010.0,106000.0,0.002]
[1750801063624,1.08445676,106010.0,106000.0,0.002]
[1750801064304,0.75910272,106010.0,106000.0,0.002]
[1750801064523,0.86296903,106010.0,106000.0,0.0336]
[1750801064754,0.86396903,106010.0,106000.0,0.0336]
[1750801064963,0.86596903,106010.0,106000.0,0.0336]
[1750801065146,0.85938577,106010.0,106000.0,0.0336]
[1750801067422,0.86603166,106010.0,106000.0,0.0336]
[1750801069705,0.67403166,106010.0,106000.0,0.0336]
[1750801069920,0.86603166,106010.0,106000.0,0.0336]
[1750801070344,0.88859157,106010.0,106000.0,0.0336]
[1750801070797,0.88859209,106010.0,106000.0,0.0336]
[1750801072781,0.86603767,106010.0,106000.0,0.0336]
[1750801073201,0.86604038,106010.0,106000.0,0.0336]
[1750801073443,0.88859849,106010.0,106000.0,0.0336]
[1750801076015,0.8886052,106010.0,106000.0,0.0336]
[1750801079108,0.88860859,106010.0,106000.0,0.0336]
[1750801079489,0.85944009,106010.0,106000.0,0.0336]
[1750801081655,0.85943952,106010.0,106000.0,0.0336]
[1750801084521,0.84180899,106010.0,106000.0,0.0336]
[1750801086319,0.84180899,106010.0,106000.0,0.0175]
[1750801087513,0.84180899,106010.0,106000.0,0.002]
[1750801093650,0.84843059,106010.0,106000.0,0.002]
[1750801094256,0.87103241,106010.0,106000.0,0.002]
[1750801094716,0.86441081,106010.0,106000.0,0.002]
[1750801095622,0.88061081,106010.0,106000.0,0.002]
[1750801101608,0.90488874,106010.0,106000.0,0.002]
[1750801101748,0.88061081,106010.0,106000.0,0.002]
[1750801108622,0.97987081,106010.0,106000.0,0.002]
[1750801108813,0.88061081,106010.0,106000.0,0.002]
[1750801112430,0.89601081,106010.0,106000.0,0.002]
[1750801113270,0.97550036,106010.0,106000.0,0.002]
[1750801113472,0.9026311,106010.0,106000.0,0.002]
[1750801114069,0.92028771,106010.0,106000.0,0.002]
[1750801114482,0.92028709,106010.0,106000.0,0.002]
[1750801114911,0.90263079,106010.0,106000.0,0.002]
[1750801116557,0.92027733,106010.0,106000.0,0.002]
[1750801116762,0.92027706,106010.0,106000.0,0.002]
[1750801117369,0.91365593,106010.0,106000.0,0.002]
[1750801117603,0.90262702,106010.0,106000.0,0.002]
[1750801117805,0.92027327,106010.0,106000.0,0.002]
[1750801118761,1.01963327,106010.0,106000.0,0.002]
[1750801120162,0.92027327,106010.0,106000.0,0.002]
[1750801120371,0.92027148,106010.0,106000.0,0.002]
[1750801122459,1.01574143,106010.0,106000.0,0.002]
[1750801122694,0.92027148,106010.0,106000.0,0.002]
[1750801126399,0.92026717,106010.0,106000.0,0.002]
[1750801129263,0.92026418,106010.0,106000.0,0.002]
[1750801130325,0.89766349,106010.0,106000.0,0.002]
[1750801131373,0.92024257,106010.0,106000.0,0.002]
[1750801132182,1.03025337,106010.0,106000.0,0.002]
[1750801132398,6.40092885,106010.0,106000.0,0.00170996]
[1750801132615,6.4291527,106010.0,106000.0,0.00170996]
[1750801133450,6.33368275,106010.0,106000.0,0.00170996]
[1750801134071,6.33168275,106010.0,106000.0,0.00170996]
[1750801134283,6.29305095,106010.0,106000.0,0.00170996]
[1750801134499,6.05201387,106000.0,105990.0,0.0004]
[1750801134711,6.49120021,106000.0,105990.0,0.0004]
[1750801135130,6.49495173,106000.0,105990.0,0.0004]
[1750801135362,6.53250899,106000.0,105990.0,0.0004]
[1750801136020,0.05,105990.0,105980.0,0.0024]
[1750801136237,0.05,105990.0,105960.0,0.0024]
[1750801136238,0.25760529,105970.0,105960.0,0.0024]
[1750801136464,0.98118262,105970.0,105960.0,0.0024]
[1750801136667,0.98496462,105970.0,105960.0,0.0024]
[1750801137284,0.98896462,105970.0,105960.0,0.0024]
[1750801137495,0.99827976,105970.0,105960.0,0.00286011]
[1750801137696,0.97508422,105970.0,105960.0,0.00286011]
[1750801138972,0.98108422,105970.0,105960.0,0.00286011]
[1750801140491,0.34978337,105970.0,105960.0,0.00286011]
[1750801140638,0.47280915,105970.0,105960.0,0.03476011]
[1750801140838,0.46902715,105970.0,105960.0,0.03476011]
[1750801141055,0.80902715,105970.0,105960.0,0.03476011]
[1750801141261,0.80402715,105970.0,105960.0,0.03476011]
[1750801141483,0.80902715,105970.0,105960.0,0.03476011]
[1750801141690,0.21860529,105970.0,105960.0,0.03476011]
[1750801141891,0.37364529,105970.0,105960.0,0.64586187]
[1750801142138,0.37364529,105970.0,105960.0,0.65529939]
[1750801142361,0.36768529,105970.0,105960.0,0.33788739]
[1750801142567,0.21260529,105970.0,105960.0,0.34732473]
[1750801142784,0.36768529,105970.0,105960.0,0.67417416]
[1750801143181,0.36268529,105970.0,105960.0,0.68361141]
[1750801143376,0.20760529,105970.0,105960.0,0.68361141]
[1750801143571,0.20960529,105970.0,105960.0,0.68361141]
[1750801143798,0.36468529,105970.0,105960.0,0.68361141]
[1750801144010,0.36268529,105970.0,105960.0,0.67417416]
[1750801144390,0.36268529,105970.0,105960.0,0.67517416]
[1750801145001,0.36864529,105970.0,105960.0,0.67517416]
[1750801145208,0.36864529,105970.0,105960.0,0.34832473]
[1750801145393,0.35920911,105970.0,105960.0,0.33888739]
[1750801146262,0.35920911,105970.0,105960.0,0.34832473]
[1750801146417,0.35920911,105970.0,105960.0,0.33888739]
[1750801147458,0.34977266,105970.0,105960.0,0.32944996]
[1750801148875,0.34377266,105970.0,105960.0,0.32944996]
[1750801149273,0.34377266,105970.0,105960.0,0.33244996]
[1750801152428,0.34377266,105970.0,105960.0,0.32301244]
[1750801153669,0.34377266,105970.0,105960.0,0.13426197]
[1750801153890,0.34377266,105970.0,105960.0,0.13662102]
[1750801163581,0.34377266,105970.0,105960.0,0.13426197]
[1750801163948,0.34377266,105970.0,105960.0,0.00686011]
[1750801163949,0.35917266,105970.0,105960.0,0.00686011]
[1750801164176,0.81067452,105970.0,105960.0,0.00686011]
[1750801164401,0.85480819,105970.0,105960.0,0.00686011]
[1750801164617,0.61372148,105960.0,105950.0,0.0004]
[1750801164824,0.61372148,105960.0,105950.0,0.00053792]
[1750801164825,0.79946334,105960.0,105950.0,0.00053792]
[1750801165248,0.8257303,105960.0,105950.0,0.00053792]
[1750801165466,0.80324534,105960.0,105950.0,0.00053792]
[1750801165703,0.80824534,105960.0,105950.0,0.00053792]
[1750801165923,0.88387758,105960.0,105950.0,0.00053792]
[1750801166739,0.88787758,105960.0,105950.0,0.00053792]
[1750801167573,0.83787758,105960.0,105950.0,0.00053792]
[1750801167780,0.88787758,105960.0,105950.0,0.00053792]
[1750801170532,0.78265252,105960.0,105950.0,0.00053792]
[1750801170963,0.80019152,105960.0,105950.0,0.00053792]
[1750801171376,0.75019152,105960.0,105950.0,0.00053792]
[1750801171588,0.80019152,105960.0,105950.0,0.00053792]
[1750801172927,0.80018435,105960.0,105950.0,0.00053792]
[1750801173587,0.78265252,105960.0,105950.0,0.00053792]
[1750801173792,0.75994234,105960.0,105950.0,0.00053792]
[1750801174029,0.21096981,105960.0,105950.0,0.00053792]
[1750801174228,0.36202781,105960.0,105950.0,0.00053792]
[1750801174440,0.70202781,105960.0,105950.0,0.00053792]
[1750801174862,0.69802781,105960.0,105950.0,0.00053792]
[1750801175025,0.69302781,105960.0,105950.0,0.00053792]
[1750801175204,0.35702781,105960.0,105950.0,0.00053792]
[1750801175409,0.35722781,105960.0,105950.0,0.01703792]
[1750801175609,0.69722781,105960.0,105950.0,0.01703792]
[1750801175811,0.69922781,105960.0,105950.0,0.01703792]
[1750801176849,0.69926781,105960.0,105950.0,0.01703792]
[1750801177056,0.69926781,105960.0,105950.0,0.03592792]
[1750801177274,0.69726781,105960.0,105950.0,0.01703792]
[1750801177924,0.69326781,105960.0,105950.0,0.01703792]
[1750801178558,0.53818781,105960.0,105950.0,0.01703792]
[1750801178762,0.69326781,105960.0,105950.0,0.01703792]
[1750801179186,0.69326781,105960.0,105950.0,0.00053792]
[1750801179734,0.53918781,105960.0,105950.0,0.00053792]
[1750801179941,0.69430781,105960.0,105950.0,0.00053792]
[1750801180349,0.69330781,105960.0,105950.0,0.00053792]
[1750801184411,0.53818781,105960.0,105950.0,0.00053792]
[1750801184635,0.69322781,105960.0,105950.0,0.00053792]
[1750801188585,0.53818781,105960.0,105950.0,0.00053792]
[1750801188817,0.69314781,105960.0,105950.0,0.00053792]
[1750801190988,0.53818781,105960.0,105950.0,0.00053792]
[1750801191225,0.69306781,105960.0,105950.0,0.00053792]
[1750801193955,0.53818781,105960.0,105950.0,0.00053792]
[1750801194165,0.69298781,105960.0,105950.0,0.00053792]
[1750801195308,0.53818781,105960.0,105950.0,0.00053792]
[1750801195542,0.69298781,105960.0,105950.0,0.00053792]
[1750801197472,0.53818781,105960.0,105950.0,0.00053792]
[1750801197679,0.69294781,105960.0,105950.0,0.00053792]
[1750801200470,0.81934967,105960.0,105950.0,0.00053792]
[1750801215793,0.66458967,105960.0,105950.0,0.00053792]
[1750801215991,0.81910967,105960.0,105950.0,0.00053792]
[1750801264822,0.47910967,105960.0,105950.0,0.00053792]
[1750801264972,0.81910967,105960.0,105950.0,0.00053792]
[1750801268420,0.47910967,105960.0,105950.0,0.00053792]
[1750801268616,0.81910967,105960.0,105950.0,0.00053792]
[1750801272654,0.69158781,105960.0,105950.0,0.00053792]
[1750801272861,0.53818781,105960.0,105950.0,0.03203792]
[1750801273068,0.69158781,105960.0,105950.0,0.03203792]
[1750801273922,0.53818781,105960.0,105950.0,0.03203792]
[1750801274175,0.01887459,105960.0,105950.0,0.54831588]
[1750801274404,0.01887459,105960.0,105950.0,0.33518443]
[1750801274405,0.02831078,105960.0,105950.0,0.33518443]
[1750801274655,0.20762497,105960.0,105950.0,0.2208062]
[1750801274882,0.19818781,105960.0,105950.0,0.03203792]
[1750801275712,0.19818781,105960.0,105950.0,0.03403792]
[1750801276133,0.19818781,105960.0,105950.0,0.03703792]
[1750801276349,0.19818781,105960.0,105950.0,0.03503792]
[1750801276559,0.19818781,105960.0,105950.0,0.22816551]
[1750801276776,0.19818781,105960.0,105950.0,0.53208019]
[1750801277828,0.19818781,105960.0,105950.0,0.55097019]
[1750801278039,0.35286781,105960.0,105950.0,0.55097019]
[1750801278600,0.19818781,105960.0,105950.0,0.55097019]
[1750801278824,0.35290781,105960.0,105950.0,0.36220191]
[1750801279842,0.35290781,105960.0,105950.0,0.56040851]
[1750801280048,0.35290781,105960.0,105950.0,0.56984674]
[1750801280257,0.3717824,105960.0,105950.0,0.67478656]
[1750801280465,0.3717824,105960.0,105950.0,0.67478665]
[1750801280682,0.2170624,105960.0,105950.0,0.67478665]
[1750801280902,0.2170624,105960.0,105950.0,0.71446665]
[1750801281585,0.2170624,105960.0,105950.0,0.71446674]
[1750801282739,0.20762533,105960.0,105950.0,0.71446674]
[1750801283615,0.20762533,105960.0,105950.0,0.7050286]
[1750801283845,0.19818799,105960.0,105950.0,0.34019806]
[1750801284061,0.19818799,105960.0,105950.0,0.02442792]
[1750801284062,0.20505047,105960.0,105950.0,0.02442792]
[1750801284297,0.29718271,105960.0,105950.0,0.02442792]
[1750801284746,0.22155047,105960.0,105950.0,0.02442792]
[1750801285192,0.52777693,105960.0,105950.0,0.02442792]
[1750801287094,0.52777693,105960.0,105950.0,0.00553792]
[1750801292020,0.83400339,105960.0,105950.0,0.00553792]
[1750801292522,0.52777693,105960.0,105950.0,0.00553792]
[1750801302202,0.52777693,105960.0,105950.0,0.02442792]
[1750801305505,0.22155047,105960.0,105950.0,0.02442792]
[1750801305707,0.52777693,105960.0,105950.0,0.02442792]
[1750801332254,0.52777693,105960.0,105950.0,0.00553792]
[1750801332489,0.52777693,105960.0,105950.0,0.43746624]
[1750801332490,0.18875047,105960.0,105950.0,0.43746624]
[1750801332708,0.01887406,105960.0,105950.0,0.64511107]
[1750801332924,0.19182901,105960.0,105950.0,0.65454903]
[1750801333170,0.17295406,105960.0,105950.0,0.6639869]
[1750801333385,0.17295397,105960.0,105950.0,0.67342469]
[1750801333605,0.36168565,105970.0,105960.0,0.22838799]
[1750801333808,0.37112174,105970.0,105960.0,0.63955374]
[1750801334012,0.21704174,105970.0,105960.0,0.64899108]
[1750801334220,0.18242899,105970.0,105960.0,0.65842815]
[1750801334455,0.26632928,105990.0,105980.0,0.20371485]
[1750801334666,0.26632928,105990.0,105980.0,0.015]
[1750801334667,0.7361105,105990.0,105980.0,0.015]
[1750801335250,0.3543318,105990.0,105980.0,0.52780009]
[1750801335484,0.3543318,105990.0,105980.0,0.33672646]
[1750801335704,0.3543318,105990.0,105980.0,0.21921485]
[1750801335909,0.002,105990.0,105980.0,0.62094317]
[1750801336125,0.002,105990.0,105980.0,0.64924967]
[1750801336126,0.18450329,105990.0,105980.0,0.64924967]
[1750801336326,0.19393787,105990.0,105980.0,0.64924967]
[1750801336532,0.03973778,105990.0,105980.0,0.65868487]
[1750801336741,0.18450311,105990.0,105980.0,0.65868487]
[1750801336955,0.19393778,105990.0,105980.0,0.65868487]
[1750801337156,0.19397778,105990.0,105980.0,0.65868487]
[1750801337361,0.19393778,105990.0,105980.0,0.65868487]
[1750801337563,0.20337254,105990.0,105980.0,0.65868487]
[1750801337765,0.002,105990.0,105980.0,1.00042458]
[1750801337934,0.01143405,105990.0,105980.0,1.00042458]
[1750801338302,0.002,105990.0,105980.0,0.71623219]
[1750801339725,0.01143405,105990.0,105980.0,0.71623219]
[1750801342330,0.01143405,105990.0,105980.0,0.74506769]
[1750801342529,0.002,105990.0,105980.0,0.74506769]
[1750801343983,0.01143414,105990.0,105980.0,0.74506769]
[1750801344186,0.002,105990.0,105980.0,0.74506769]
[1750801345052,0.02086871,105990.0,105980.0,0.74506769]
[1750801348026,0.03030338,105990.0,105980.0,0.41880716]
[1750801348242,0.03030338,105990.0,105980.0,0.74506769]
[1750801348932,0.02086862,105990.0,105980.0,0.74506769]
[1750801349158,0.01143422,105990.0,105980.0,0.74506769]
[1750801349610,0.02086853,105990.0,105980.0,0.74506769]
[1750801350463,0.01143422,105990.0,105980.0,0.74506769]
[1750801351323,0.02086853,105990.0,105980.0,0.74506769]
[1750801351557,0.01143422,105990.0,105980.0,0.74506769]
[1750801351760,0.01143414,105990.0,105980.0,0.74506769]
[1750801353266,0.02086836,105990.0,105980.0,0.74506769]
[1750801353511,0.02086836,105990.0,105980.0,0.10903915]
[1750801353512,0.24126611,105990.0,105980.0,0.10903915]
[1750801353721,0.64315888,105990.0,105980.0,0.01353729]
[1750801354057,0.47109835,105990.0,105980.0,0.01353729]
[1750801354260,0.47109835,105990.0,105980.0,0.004]
[1750801358325,0.79735888,105990.0,105980.0,0.004]
[1750801359820,0.72172664,105990.0,105980.0,0.004]
[1750801360352,0.39546611,105990.0,105980.0,0.004]
[1750801380317,0.70149599,105990.0,105980.0,0.004]
[1750801381259,0.39546611,105990.0,105980.0,0.004]
[1750801381465,0.70149599,105990.0,105980.0,0.004]
[1750801387132,0.66979599,105990.0,105980.0,0.004]
[1750801388248,0.70119599,105990.0,105980.0,0.004]
[1750801396620,0.66979599,105990.0,105980.0,0.004]
[1750801400511,0.76979599,105990.0,105980.0,0.004]
[1750801406863,1.64072498,105990.0,105980.0,0.004]
[1750801407072,1.69331398,105990.0,105980.0,0.004]
[1750801407280,1.69331339,105990.0,105980.0,0.004]
[1750801407722,1.70785424,105990.0,105980.0,0.004]
[1750801407935,1.70785424,105990.0,105980.0,0.002]
[1750801408971,0.23892488,105960.0,105950.0,0.00053792]
[1750801409223,0.69939476,105960.0,105950.0,0.00053792]
[1750801412943,1.03939476,105960.0,105950.0,0.00053792]
[1750801415824,1.37377764,105960.0,105950.0,0.00053792]
[1750801416722,1.38342858,105960.0,105950.0,0.00053792]
[1750801419025,1.35507558,105960.0,105950.0,0.00053792]
[1750801419968,1.45057744,105960.0,105950.0,0.00053792]
[1750801420461,1.47893344,105960.0,105950.0,0.00053792]
[1750801430707,1.51901344,105960.0,105950.0,0.00053792]
[1750801431154,1.82504332,105960.0,105950.0,0.00053792]
[1750801433330,1.83958417,105960.0,105950.0,0.00053792]
[1750801433559,8.09909026,105960.0,105950.0,0.00053792]
[1750801433777,0.57798368,105930.0,105920.0,0.0024]
[1750801433990,1.82300899,105930.0,105920.0,0.00253798]
[1750801434189,1.84711795,105930.0,105920.0,0.00253798]
[1750801434398,1.85089995,105930.0,105920.0,0.00253798]
[1750801434605,1.33588922,105930.0,105920.0,0.00253798]
[1750801434821,1.33588922,105930.0,105920.0,0.03403798]
[1750801434822,0.89748231,105930.0,105920.0,0.03403798]
[1750801435045,1.00827356,105930.0,105920.0,0.03403798]
[1750801435269,1.01127356,105930.0,105920.0,0.03403798]
[1750801435709,1.00855356,105930.0,105920.0,0.03403798]
[1750801435915,0.21268368,105930.0,105920.0,0.03403798]
[1750801436163,0.20768368,105930.0,105920.0,0.66447147]
[1750801436407,0.20124393,105930.0,105920.0,0.36788267]
[1750801436646,0.18876828,105950.0,105930.0,0.22222382]
[1750801436858,0.02831344,105950.0,105940.0,0.71672873]
[1750801437065,0.001,105960.0,105950.0,0.27326134]
[1750801437272,0.01987388,105960.0,105950.0,0.6954579]
[1750801437503,0.001,105960.0,105950.0,0.6954579]
[1750801437723,0.01043681,105960.0,105950.0,0.6954579]
[1750801437919,0.001,105960.0,105950.0,0.7238029]
[1750801438820,0.001,105960.0,105950.0,0.7258029]
[1750801439233,0.001,105960.0,105950.0,0.7308029]
[1750801440551,0.001,105960.0,105950.0,0.7288029]
[1750801440963,0.001,105960.0,105950.0,0.7722429]
[1750801442071,0.001,105960.0,105950.0,1.1222429]
[1750801442283,0.001,105970.0,105960.0,0.77525666]
[1750801442534,0.001,105970.0,105960.0,1.35277322]
[1750801442954,0.001,105970.0,105960.0,1.38111122]
[1750801443405,0.001,105970.0,105960.0,1.39565207]
[1750801443636,0.001,105970.0,105960.0,1.08240065]
[1750801443875,0.001,105970.0,105960.0,1.78779005]
[1750801444120,0.001,105970.0,105960.0,1.73779005]
[1750801444337,0.001,105970.0,105960.0,1.78779005]
[1750801444758,0.001,105970.0,105960.0,1.79079005]
[1750801445925,0.001,105970.0,105960.0,1.78779005]
[1750801446131,0.19650069,105990.0,105980.0,0.26216184]
[1750801446349,0.19650069,105990.0,105980.0,0.8803984]
[1750801446578,0.102,105990.0,105980.0,0.8803984]
[1750801446782,0.102,105990.0,105980.0,0.9087344]
[1750801447617,0.102,105990.0,105980.0,0.9107344]
[1750801448899,0.102,105990.0,105980.0,0.9127344]
[1750801449530,0.102,105990.0,105980.0,1.0627344]
[1750801449929,0.11143422,105990.0,105980.0,1.0627344]
[1750801450138,0.102,105990.0,105980.0,1.1127344]
[1750801450354,0.11143422,105990.0,105980.0,1.1127344]
[1750801450560,0.12086853,105990.0,105980.0,1.12214659]
[1750801450984,0.11143422,105990.0,105980.0,1.12214659]
[1750801451843,0.102,105990.0,105980.0,1.12214659]
[1750801452051,0.11143414,105990.0,105980.0,1.12214659]
[1750801452277,0.102,105990.0,105980.0,1.14103659]
[1750801452471,0.11143414,105990.0,105980.0,1.14103659]
[1750801453632,0.13030285,105990.0,105980.0,1.14103659]
[1750801454083,0.102,105990.0,105980.0,1.14103659]
[1750801454780,0.13973779,105990.0,105980.0,0.3754549]
[1750801454921,0.39463302,105990.0,105980.0,0.3852949]
[1750801455130,0.38519871,105990.0,105980.0,0.35222005]
[1750801455541,0.38519871,105990.0,105980.0,0.55037064]
[1750801455881,0.38519871,105990.0,105980.0,0.55980629]
[1750801456248,0.38519871,105990.0,105980.0,0.56924185]
[1750801456727,0.12086889,105990.0,105980.0,0.96054789]
[1750801457107,0.12086836,105990.0,105980.0,0.96054789]
[1750801457413,0.102,105990.0,105980.0,0.96054789]
[1750801457630,0.11143405,105990.0,105980.0,0.96054789]
[1750801458047,0.102,105990.0,105980.0,0.96054789]
[1750801458353,0.11143414,105990.0,105980.0,0.96054789]
[1750801458584,0.102,105990.0,105980.0,0.96054789]
[1750801458967,0.11143405,105990.0,105980.0,0.96054789]
[1750801459169,0.102,105990.0,105980.0,0.96054789]
[1750801459390,0.11143405,105990.0,105980.0,0.96054789]
[1750801459668,0.12086827,105990.0,105980.0,0.96054789]
[1750801460288,0.11143405,105990.0,105980.0,0.96054789]
[1750801460494,0.102,105990.0,105980.0,0.96054789]
[1750801461266,0.11143414,105990.0,105980.0,0.96054789]
[1750801462155,0.102,105990.0,105980.0,0.96054789]
[1750801462294,0.11143414,105990.0,105980.0,0.96054789]
[1750801463342,0.12086845,105990.0,105980.0,0.96054789]
[1750801463546,0.11143414,105990.0,105980.0,0.96054789]
[1750801464777,0.12086845,105990.0,105980.0,0.96054789]
[1750801464981,0.13030294,105990.0,105980.0,0.96054789]
[1750801465178,0.12086845,105990.0,105980.0,0.96054789]
[1750801465403,0.11143414,105990.0,105980.0,0.96054789]
[1750801465602,0.12086854,105990.0,105980.0,0.96054789]
[1750801465816,0.13030303,105990.0,105980.0,0.96054789]
[1750801466222,0.1397377,105990.0,105980.0,0.96054789]
[1750801466482,0.13030303,105990.0,105980.0,0.96054789]
[1750801467286,0.1397377,105990.0,105980.0,0.96054789]
[1750801467542,0.13973761,105990.0,105980.0,0.96054789]
[1750801467748,0.13030303,105990.0,105980.0,0.96054789]
[1750801469058,0.13030303,105990.0,105980.0,0.96186789]
[1750801469746,0.1397377,105990.0,105980.0,0.63517319]
[1750801469957,0.1397377,105990.0,105980.0,0.93066789]
[1750801470377,0.1397377,105990.0,105980.0,0.94726789]
[1750801471021,0.1397377,105990.0,105980.0,0.96266789]
[1750801471729,0.14917246,105990.0,105980.0,0.96266789]
[1750801472739,0.14917246,105990.0,105980.0,0.93066789]
[1750801473718,0.3378695,105990.0,105980.0,0.93066789]
[1750801474130,0.14917246,105990.0,105980.0,0.93066789]
[1750801474565,0.1397377,105990.0,105980.0,0.94718789]
[1750801474793,0.1397377,105990.0,105980.0,0.62049319]
[1750801474992,0.3378695,105990.0,105980.0,0.94718789]
[1750801475273,0.14917246,105990.0,105980.0,0.93058789]
[1750801476331,0.30956647,105990.0,105980.0,0.12780405]
[1750801476540,0.32536647,105990.0,105980.0,0.32740274]
[1750801476742,0.32536647,105990.0,105980.0,0.32504405]
[1750801477362,0.34086647,105990.0,105980.0,0.32504405]
[1750801481789,0.34086647,105990.0,105980.0,0.32500405]
[1750801482635,0.34086647,105990.0,105980.0,0.16900405]
[1750801483290,0.34086647,105990.0,105980.0,0.06409]
[1750801498650,0.30956647,105990.0,105980.0,0.06409]
[1750801499296,0.32576647,105990.0,105980.0,0.06409]
[1750801499509,0.30956647,105990.0,105980.0,0.09639]
[1750801499746,0.30956647,105990.0,105980.0,0.06409]
[1750801499974,0.32596647,105990.0,105980.0,0.06409]
[1750801500403,0.30956647,105990.0,105980.0,0.28450485]
[1750801500606,0.30956647,105990.0,105980.0,0.38944236]
[1750801500820,0.30956647,105990.0,105980.0,0.7495484]
[1750801500821,0.102,105990.0,105980.0,0.7495484]
[1750801501034,0.102,105990.0,105980.0,0.8995484]
[1750801501244,0.08666741,105990.0,105980.0,0.9778824]
[1750801501459,0.07593887,105990.0,105980.0,1.6445771]
[1750801501669,0.00729349,105990.0,105980.0,1.6945771]
[1750801501885,0.0022,106010.0,106000.0,0.24938004]
[1750801502102,0.0022,106010.0,106000.0,0.8468266]
[1750801502329,0.0022,106010.0,106000.0,1.23784745]
[1750801502543,0.0022,106010.0,106000.0,1.65617445]
[1750801502955,0.0022,106010.0,106000.0,1.37947975]
[1750801503168,0.00265917,106010.0,106000.0,1.70617445]
[1750801504056,0.00265917,106010.0,106000.0,1.71617445]
[1750801504500,0.0022,106030.0,106020.0,0.39763911]
[1750801504723,0.0022,106030.0,106020.0,1.68402835]
[1750801505176,0.0022,106030.0,106020.0,1.71235135]
[1750801505817,0.0022,106030.0,106020.0,1.71335135]
[1750801506942,0.0022,106030.0,106020.0,1.71635135]
[1750801507407,0.0022,106030.0,106020.0,1.38965665]
[1750801507624,0.20968799,106030.0,106020.0,0.46919839]
[1750801507836,0.20968799,106030.0,106020.0,0.31174069]
[1750801508255,0.20968799,106030.0,106020.0,0.11418069]
[1750801508472,0.20968799,106030.0,106020.0,0.09963984]
[1750801508907,0.20968799,106030.0,106020.0,0.29715984]
[1750801509979,0.20968799,106030.0,106020.0,0.09963984]
[1750801510187,0.20968799,106030.0,106020.0,0.14075984]
[1750801510795,0.56828269,106030.0,106020.0,0.00413798]
[1750801511862,0.90828269,106030.0,106020.0,0.00413798]
[1750801523563,0.87638269,106030.0,106020.0,0.00413798]
[1750801523812,0.70588799,106030.0,106020.0,0.00413798]
[1750801524051,0.36588799,106030.0,106020.0,0.13429791]
[1750801524271,0.20968799,106030.0,106020.0,0.32294156]